bitfinex/quotes_ETHUSD_20240823
["timestamp","ask_amount","ask_price","bid_price","bid_amount"]
[1724425771354,3.75318,2664.5,2663.7,3.75404]
[1724425771574,7.50629,2664.5,2663.7,3.75404]
[1724425771884,3.75313,2664.5,2663.8,3.75402]
[1724425772255,3.75313,2664.5,2663.7,3.75404]
[1724425772256,3.75283,2664.7,2664.0,3.75365]
[1724425772780,7.50568,2664.7,2663.9,3.75386]
[1724425772953,3.75292,2664.6,2663.9,3.75386]
[1724425773402,3.75306,2664.5,2663.9,3.75386]
[1724425773805,1.54610483,2664.7,2663.8,3.75401]
[1724425773972,3.75304,2664.6,2663.9,3.75386]
[1724425774312,3.75301,2664.6,2663.9,3.75386]
[1724425774611,7.50601,2664.6,2663.9,3.75386]
[1724425774818,3.753,2664.6,2663.9,3.75386]
[1724425775110,7.50599,2664.6,2663.9,3.75386]
[1724425775316,3.75306,2664.5,2663.7,7.50813]
[1724425775487,8.87891285,2664.6,2663.7,3.75405]
[1724425775700,3.75305,2664.5,2663.9,3.75389]
[1724425776325,8.87889285,2664.6,2663.9,3.75389]
[1724425776616,4.30317,2664.5,2663.8,3.75401]
[1724425776772,3.75322,2664.4,2663.6,3.75421]
[1724425776996,3.75348,2664.2,2663.6,3.75421]
[1724425777193,3.75348,2664.2,2663.4,10.50898]
[1724425777389,4.2488944,2664.2,2663.4,6.75448]
[1724425777607,3.75365,2664.1,2663.4,10.509]
[1724425777804,10.67127,2663.9,2663.2,7.49]
[1724425778109,3.75415,2663.8,2663.2,3.75485]
[1724425778342,3.75415,2663.8,2663.1,7.50995]
[1724425778821,3.75415,2663.8,2663.2,3.75485]
[1724425779016,6.9173,2663.9,2663.2,3.75485]
[1724425779242,6.9173,2663.9,2663.3,3.75472]
[1724425779947,8.039405,2663.9,2663.2,3.75485]
[1724425780103,8.039405,2663.9,2663.0,3.75506]
[1724425780334,0.55,2663.8,2663.1,3.0]
[1724425780706,3.7544,2663.6,2662.9,3.7552]
[1724425780940,7.5088,2663.6,2662.9,3.7552]
[1724425781125,3.7544,2663.6,2662.8,3.75534]
[1724425781452,5.07845189,2663.4,2661.9,7.167]
[1724425781612,3.75525,2663.0,2662.3,3.75613]
[1724425781814,0.55,2662.9,2662.3,3.75613]
[1724425782119,7.3152,2662.9,2662.0,3.75651]
[1724425782318,7.3152,2662.9,2662.3,3.75614]
[1724425782518,6.7652,2663.2,2662.5,3.75575]
[1724425782751,6.7652,2663.2,2662.6,3.75564]
[1724425782954,4.93116152,2663.6,2663.0,3.75507]
[1724425782955,6.8749,2663.6,2663.0,3.75507]
[1724425783246,3.75465,2663.4,2662.8,3.75543]
[1724425783467,7.50934,2663.4,2662.6,3.75561]
[1724425783646,7.50934,2663.4,2662.6,7.51124]
[1724425783647,3.75465,2663.4,2662.6,7.51124]
[1724425783959,3.75465,2663.4,2662.6,3.75561]
[1724425784142,3.75465,2663.4,2662.7,3.75549]
[1724425784644,3.75449,2663.5,2662.8,3.75544]
[1724425784849,3.75449,2663.5,2662.6,3.75561]
[1724425784850,3.75461,2663.4,2662.6,7.51123]
[1724425785022,3.75461,2663.4,2662.7,3.75558]
[1724425785227,10.6293,2663.6,2662.8,3.75542]
[1724425785228,3.75448,2663.5,2662.8,3.75542]
[1724425785428,5.62845189,2663.5,2662.4,6.75592]
[1724425785647,6.9754,2663.2,2662.5,6.75583]
[1724425785907,6.9754,2663.2,2662.2,7.51241]
[1724425785908,4.30506,2663.1,2662.2,7.51241]
[1724425786112,3.75531,2662.9,2662.2,7.5124]
[1724425786295,3.75531,2662.9,2662.2,3.7562]
[1724425786474,3.75531,2662.9,2662.2,7.51241]
[1724425786677,3.75518,2663.0,2662.4,3.756]
[1724425786905,5.433106,2663.1,2662.2,7.51235]
[1724425787113,4.9960506,2663.0,2662.2,3.75615]
[1724425787578,0.55,2662.9,2661.8,7.1162]
[1724425787776,6.6231,2662.8,2661.6,0.15484076]
[1724425787975,3.75588,2662.5,2661.8,3.75677]
[1724425788317,3.75625,2662.3,2661.6,3.75706]
[1724425788519,6.6231,2662.3,2661.8,3.75684]
[1724425789024,6.6231,2662.3,2661.8,7.51368]
[1724425789230,6.6231,2662.3,2661.8,7.51359]
[1724425789437,10.92876,2662.7,2662.0,3.75652]
[1724425789785,3.75575,2662.6,2661.8,3.75675]
[1724425790106,5.224201,2662.6,2661.8,3.75675]
[1724425790282,5.224201,2662.6,2661.8,7.51352]
[1724425790483,5.224201,2662.6,2661.8,3.75675]
[1724425790721,1.468451,2662.6,2661.9,3.7566]
[1724425790923,3.75587,2662.5,2661.8,3.75675]
[1724425791141,3.75587,2662.5,2661.8,7.51351]
[1724425791323,3.75587,2662.5,2661.8,3.75675]
[1724425791523,1.468451,2662.6,2661.8,3.75675]
[1724425791852,10.92876,2662.7,2662.1,3.75639]
[1724425791853,7.1731,2662.7,2662.1,3.75639]
[1724425792056,7.1731,2662.7,2662.0,3.75653]
[1724425792405,7.1731,2662.7,2662.1,3.75632]
[1724425792656,10.78445,2663.0,2662.2,3.75621]
[1724425792957,3.75554,2662.8,2662.0,3.75649]
[1724425793097,7.0292,2663.0,2662.0,3.75649]
[1724425793321,1.54610483,2663.2,2661.8,6.5569]
[1724425793322,10.61996,2663.2,2662.1,3.0]
[1724425793658,10.61996,2663.2,2661.8,6.5569]
[1724425793659,10.61996,2663.2,2662.3,3.75607]
[1724425793977,10.61996,2663.2,2662.4,7.51189]
[1724425794137,14.37492,2663.2,2662.4,7.51181]
[1724425794473,3.75468,2663.4,2662.7,3.75556]
[1724425794625,7.50938,2663.4,2662.7,3.75556]
[1724425794825,3.75468,2663.4,2662.7,3.75556]
[1724425795237,10.61949,2663.5,2662.7,3.7555]
[1724425795438,12.43560483,2663.8,2662.9,3.75519]
[1724425795692,3.75429,2663.7,2662.9,3.75519]
[1724425795841,3.75434,2663.6,2662.9,3.75519]
[1724425796046,7.50874,2663.6,2662.9,3.75519]
[1724425796235,3.75469,2663.4,2662.7,3.75552]
[1724425796435,3.75481,2663.3,2662.5,3.75576]
[1724425796763,10.37299,2663.2,2662.6,3.0]
[1724425797645,6.6181,2663.2,2662.6,6.7557]
[1724425797840,3.75464,2663.4,2662.7,3.75556]
[1724425798068,0.55,2663.3,2662.7,3.75556]
[1724425798293,10.88266,2663.5,2662.8,3.75536]
[1724425798628,3.75439,2663.6,2662.9,3.75527]
[1724425798830,0.55,2663.5,2662.9,3.75521]
[1724425799379,4.30445,2663.5,2662.7,3.75549]
[1724425799537,3.75461,2663.4,2662.7,3.75549]
[1724425799937,3.75475,2663.3,2662.7,3.75549]
[1724425800197,0.55,2663.5,2662.7,3.75549]
[1724425800477,3.75469,2663.4,2662.7,3.75558]
[1724425800630,7.50936,2663.4,2662.7,3.75558]
[1724425800826,7.50936,2663.4,2662.7,3.75549]
[1724425800827,3.75467,2663.4,2662.7,3.75549]
[1724425801034,12.07092483,2663.8,2662.6,3.0]
[1724425801345,0.55,2663.7,2662.9,7.51041]
[1724425801596,4.30425,2663.7,2662.9,7.51041]
[1724425801958,0.55,2663.7,2663.0,3.75504]
[1724425802151,6.7707,2663.8,2663.2,3.7548]
[1724425802435,7.1794,2664.1,2663.5,3.75445]
[1724425802745,8.49875147,2664.1,2663.3,3.75469]
[1724425802945,3.75399,2663.9,2663.1,7.50982]
[1724425803135,3.75399,2663.9,2663.2,6.75482]
[1724425803329,3.75405,2663.8,2663.2,3.0]
[1724425803534,6.9634,2663.5,2662.7,3.7555]
[1724425803775,6.9634,2663.5,2662.5,10.86371]
[1724425803776,1.071779,2663.4,2662.5,10.86367]
[1724425803975,5.376469,2663.4,2662.6,3.75562]
[1724425804135,5.376469,2663.4,2662.7,3.75556]
[1724425804331,1.621779,2663.4,2662.8,3.75542]
[1724425804696,5.30021483,2663.8,2663.0,3.75503]
[1724425804915,4.30411,2663.8,2663.0,3.75503]
[1724425805091,3.7547,2663.4,2662.6,6.75568]
[1724425805262,3.75489,2663.2,2662.6,3.75568]
[1724425805468,3.75489,2663.2,2662.3,3.0]
[1724425805469,3.75497,2663.2,2662.3,3.0]
[1724425805774,0.55,2663.8,2662.3,3.0]
[1724425805775,2.09610483,2663.8,2663.0,3.75508]
[1724425805976,2.09610483,2663.8,2663.0,14.59475]
[1724425805977,4.30412,2663.8,2663.0,14.59475]
[1724425806176,6.8841,2663.9,2663.3,3.75472]
[1724425806627,6.8841,2663.9,2663.2,3.82988023]
[1724425806795,8.07845189,2664.3,2664.0,3.75366]
[1724425806796,1.54610483,2664.3,2664.0,3.75366]
[1724425806999,3.75278,2664.7,2663.8,3.75391]
[1724425807000,1.54610483,2664.7,2663.8,3.75391]
[1724425807170,3.75318,2664.5,2663.6,7.50846]
[1724425807371,3.75318,2664.5,2663.6,3.75422]
[1724425807575,3.75333,2664.3,2663.6,3.75422]
[1724425807803,3.75333,2664.3,2663.4,17.97778]
[1724425807972,6.7384,2664.2,2663.5,3.0]
[1724425808172,4.802873,2664.1,2663.3,3.0]
[1724425808373,4.802873,2664.1,2663.4,3.75448]
[1724425808573,6.7384,2664.2,2663.4,3.75448]
[1724425808574,6.7384,2664.2,2663.5,3.75444]
[1724425808773,6.7384,2664.2,2663.4,3.75448]
[1724425809016,6.7384,2664.2,2663.6,3.7543]
[1724425809516,0.55,2664.1,2663.3,3.0]
[1724425809717,0.55,2664.1,2663.4,3.75449]
[1724425809879,3.75375,2664.0,2663.3,3.0]
[1724425810211,3.75375,2664.0,2663.0,3.75508]
[1724425810212,1.654196,2664.1,2663.0,6.75508]
[1724425810413,2.09610483,2664.1,2663.4,3.75456]
[1724425810615,2.09610483,2664.1,2663.5,3.75444]
[1724425810616,0.55,2664.1,2663.5,3.75444]
[1724425811147,10.49193,2664.2,2663.3,6.9788]
[1724425811148,6.7384,2664.2,2663.3,6.9788]
[1724425811332,6.7384,2664.2,2663.3,10.73347]
[1724425811628,3.7539,2663.9,2663.1,3.7549]
[1724425811829,3.7539,2663.9,2663.2,3.0]
[1724425812159,0.55,2664.1,2663.5,3.75444]
[1724425812424,0.55,2664.1,2663.3,3.75462]
[1724425812582,4.30371,2664.1,2663.3,3.75462]
[1724425812787,3.75376,2664.0,2663.3,3.75462]
[1724425813097,3.75412,2663.8,2662.9,3.75528]
[1724425813296,3.75412,2663.8,2663.0,3.0]
[1724425813297,10.61975,2663.6,2663.0,3.0]
[1724425813696,6.8654,2663.6,2663.0,3.0]
[1724425813904,3.75412,2663.8,2663.0,3.0]
[1724425814111,3.75431,2663.6,2663.0,3.0]
[1724425814435,4.560153,2663.6,2663.0,3.0]
[1724425814929,6.5917,2663.3,2662.7,3.75547]
[1724425815110,0.55,2663.5,2662.8,3.75535]
[1724425815485,3.75467,2663.4,2662.7,3.75558]
[1724425815681,3.75467,2663.4,2662.5,3.75577]
[1724425815682,3.75488,2663.2,2662.5,3.75577]
[1724425815933,3.75488,2663.2,2662.0,7.49]
[1724425815934,10.77262,2663.0,2662.0,7.49]
[1724425816189,12.31872483,2663.0,2661.9,3.75661]
[1724425816383,12.31872483,2663.0,2661.9,7.51321]
[1724425816384,3.75554,2662.8,2661.9,7.51321]
[1724425816628,3.75582,2662.6,2661.7,11.2469]
[1724425816828,3.7561,2662.4,2661.3,18.00154]
[1724425817132,3.7561,2662.4,2661.3,7.49]
[1724425817133,3.75641,2662.2,2661.3,7.49]
[1724425817431,7.0442,2661.9,2661.3,7.49]
[1724425817751,7.0442,2661.9,2661.0,3.75797]
[1724425817941,7.0442,2661.9,2661.2,3.75769]
[1724425818252,8.124277,2661.9,2661.0,3.75797]
[1724425818523,8.124277,2661.9,2660.9,3.7581]
[1724425818524,4.30687,2661.8,2660.9,3.7581]
[1724425819027,3.75716,2661.6,2660.8,11.24824]
[1724425819187,3.757,2661.7,2660.9,3.75811]
[1724425819393,0.55,2661.6,2661.0,3.75796]
[1724425819818,4.307,2661.7,2660.8,11.24824]
[1724425820021,0.4307,2661.6,2660.8,7.49]
[1724425820185,3.75804,2661.0,2660.1,14.202]
[1724425820391,6.9523,2661.0,2660.3,3.75895]
[1724425820590,10.71029,2661.0,2660.1,7.49]
[1724425821087,10.71029,2661.0,2659.8,6.712]
[1724425821088,4.30814,2660.9,2660.0,13.75937]
[1724425821332,4.30814,2660.9,2660.0,13.75928]
[1724425821506,1.126044,2660.8,2660.0,13.75928]
[1724425821895,1.126044,2660.8,2660.1,3.75924]
[1724425822096,0.55,2660.9,2660.2,3.75911]
[1724425822407,4.30828,2660.8,2660.0,13.75939]
[1724425822814,4.30828,2660.8,2660.0,10.0]
[1724425823032,3.75852,2660.7,2660.0,10.0]
[1724425823383,10.64512,2660.5,2660.0,10.0]
[1724425823532,8.381677,2660.5,2660.0,10.0]
[1724425823891,12.140367,2660.5,2660.0,10.0]
[1724425824431,19.32375189,2660.1,2660.0,10.0]
[1724425824832,19.87375189,2660.1,2660.0,10.0]
[1724425826134,11.03605,2660.1,2660.0,10.0]
[1724425826432,7.2768,2660.1,2660.0,10.0]
[1724425827127,6.7268,2660.1,2660.0,10.0]
[1724425827333,10.48605,2660.1,2660.0,10.0]
[1724425827646,6.7268,2660.1,2660.0,10.0]
[1724425828015,10.99178,2660.4,2660.0,10.0]
[1724425828220,1.75656089,2660.3,2660.0,10.0]
[1724425828407,6.57382889,2660.5,2660.0,10.0]
[1724425828408,1.495377,2660.5,2660.0,10.0]
[1724425828611,7.2329,2660.8,2660.0,10.0]
[1724425829037,7.2329,2660.8,2660.1,3.75916]
[1724425829306,3.75801,2661.0,2660.1,3.7592]
[1724425829507,3.75801,2661.0,2660.1,7.51833]
[1724425829829,5.07845189,2661.1,2660.0,10.0]
[1724425830030,3.75893,2660.4,2660.0,10.0]
[1724425830247,3.75922,2660.2,2660.0,10.0]
[1724425830453,3.75884,2660.4,2660.0,10.0]
[1724425830803,0.55,2660.3,2660.0,10.0]
[1724425831254,4.30897,2660.3,2660.0,10.0]
[1724425831435,2.080071,2660.3,2660.0,10.0]
[1724425831635,0.55,2660.3,2660.0,10.0]
[1724425831876,3.0,2660.9,2660.0,10.0]
[1724425831877,3.7583,2660.8,2660.0,10.0]
[1724425832145,3.75878,2660.5,2660.0,10.0]
[1724425832349,4.30883,2660.4,2660.0,10.0]
[1724425832551,3.75925,2660.1,2660.0,10.0]
[1724425832709,3.75922,2660.2,2660.0,10.0]
[1724425833053,0.806749,2660.4,2660.0,10.0]
[1724425833255,3.75892,2660.4,2660.0,10.0]
[1724425833428,10.48549,2660.3,2660.0,10.0]
[1724425833614,3.75925,2660.1,2660.0,10.0]
[1724425834338,8.0685,2660.1,2660.0,10.0]
[1724425836036,11.82775,2660.1,2660.0,10.0]
[1724425836254,21.31782019,2660.1,2660.0,10.0]
[1724425837317,3.76041,2659.3,2658.5,10.4694]
[1724425837553,3.76054,2659.2,2658.5,10.4694]
[1724425837876,7.52134,2659.1,2658.2,7.49]
[1724425838035,4.31067,2659.1,2658.4,3.76163]
[1724425838397,3.76044,2659.3,2658.3,3.76176]
[1724425838562,3.76067,2659.1,2658.2,7.49]
[1724425838854,3.76067,2659.1,2657.9,3.76226]
[1724425838855,15.11894,2659.1,2657.9,3.76226]
[1724425839039,21.87961,2659.1,2657.7,3.76254]
[1724425839239,21.87961,2659.1,2657.6,7.1292]
[1724425839418,25.64028,2659.1,2659.0,9.7e-06]
[1724425840042,25.64028,2659.1,2657.3,3.76315]
[1724425840043,3.76226,2658.0,2657.3,3.76315]
[1724425840759,3.76196,2658.2,2657.3,3.76315]
[1724425841053,0.55,2658.1,2657.3,3.76312]
[1724425841213,0.55,2658.1,2657.1,3.76339]
[1724425841214,3.76247,2657.9,2657.1,3.76339]
[1724425841413,4.31261,2657.8,2657.0,3.76363]
[1724425841657,0.55,2657.8,2657.1,3.76349]
[1724425841830,3.76238,2657.9,2657.1,3.76349]
[1724425841831,3.76237,2657.9,2657.1,3.76349]
[1724425842010,3.76237,2657.9,2656.9,3.76376]
[1724425842011,10.87818,2658.0,2656.9,3.76367]
[1724425842239,0.55,2657.9,2656.9,3.76366]
[1724425842468,3.76252,2657.8,2657.1,3.76348]
[1724425842658,0.55,2657.9,2657.3,3.76321]
[1724425842983,0.55,2657.9,2657.1,3.76348]
[1724425842984,0.55,2657.9,2657.2,3.76335]
[1724425843282,8.07845189,2658.4,2657.4,3.76307]
[1724425843283,15.05855189,2658.4,2657.4,3.76307]
[1724425843591,15.05855189,2658.4,2657.5,3.76292]
[1724425843592,3.76181,2658.3,2657.5,3.76292]
[1724425843793,12.05855189,2658.4,2657.3,6.75]
[1724425843960,6.9801,2658.4,2657.6,3.76275]
[1724425844163,10.74185,2658.4,2657.6,3.76275]
[1724425844344,6.581,2659.1,2658.0,3.76214]
[1724425844545,3.76117,2658.8,2657.8,10.71124]
[1724425844882,3.76117,2658.8,2657.7,3.76254]
[1724425844883,3.76147,2658.6,2657.7,3.76254]
[1724425845081,3.76147,2658.6,2657.5,3.0]
[1724425845082,0.376117,2658.7,2657.5,3.0]
[1724425845286,3.76233,2658.0,2657.3,3.7632]
[1724425845787,3.76233,2658.0,2657.2,3.76331]
[1724425845788,3.76198,2658.2,2657.0,9.9488]
[1724425846085,8.84012189,2658.4,2657.2,3.76329]
[1724425846086,5.07845189,2658.4,2657.2,3.76329]
[1724425846288,3.76251,2657.8,2657.1,3.0]
[1724425846452,3.76251,2657.8,2657.0,3.76352]
[1724425846453,6.7612,2657.7,2656.6,10.62197]
[1724425846651,3.76283,2657.6,2656.8,7.52765]
[1724425846870,3.76308,2657.4,2656.6,10.62195]
[1724425847185,3.76308,2657.4,2656.6,3.76415]
[1724425847358,3.76308,2657.4,2656.4,3.76441]
[1724425847359,3.76338,2657.2,2656.4,3.76443]
[1724425847557,3.76338,2657.2,2656.3,0.1289797]
[1724425847558,10.3112,2657.5,2656.6,3.76412]
[1724425847740,10.3112,2657.5,2656.3,0.1289797]
[1724425847741,3.76317,2657.4,2656.4,3.76443]
[1724425847941,10.3112,2657.5,2656.4,3.76443]
[1724425847942,3.76351,2657.1,2656.4,3.76443]
[1724425848146,3.76351,2657.1,2656.3,0.1289797]
[1724425848410,4.31368,2657.0,2656.3,0.1289797]
[1724425848563,0.55,2657.0,2656.4,4.17840082]
[1724425848785,5.07845189,2657.2,2656.4,3.76436]
[1724425848955,8.84181189,2657.2,2656.3,0.54302052]
[1724425849150,3.76313,2657.4,2656.6,3.76411]
[1724425849508,3.76313,2657.4,2656.4,3.7644]
[1724425849509,3.76336,2657.2,2656.4,3.7644]
[1724425849667,3.76336,2657.2,2656.4,3.76437]
[1724425849868,3.76336,2657.2,2656.3,0.1289797]
[1724425849869,3.76368,2657.0,2656.3,0.1289797]
[1724425850116,6.7612,2657.5,2656.6,3.76414]
[1724425850299,6.7612,2657.5,2656.8,3.76379]
[1724425850475,7.94516519,2657.5,2656.9,3.76377]
[1724425850677,10.35397,2657.8,2656.8,3.76379]
[1724425850983,10.35341,2658.2,2657.0,6.7864]
[1724425851181,3.76224,2658.0,2657.2,3.76324]
[1724425851402,3.7623,2658.0,2657.2,3.76324]
[1724425851620,3.76274,2657.7,2657.0,6.7864]
[1724425851755,3.7628,2657.6,2656.9,6.76375]
[1724425851951,7.52551,2657.7,2657.0,3.76361]
[1724425852201,3.76219,2658.1,2656.9,3.0]
[1724425852406,3.76246,2657.9,2657.0,3.7636]
[1724425852608,3.76268,2657.7,2657.0,3.7636]
[1724425852790,3.76268,2657.7,2656.7,3.0]
[1724425852791,3.76301,2657.5,2656.7,3.0]
[1724425852956,7.157668,2657.6,2656.7,3.0]
[1724425853306,3.76295,2657.5,2656.8,3.76383]
[1724425853458,3.76295,2657.5,2656.7,6.76404]
[1724425853661,0.55,2657.4,2656.8,3.76388]
[1724425853856,6.7814,2658.0,2656.7,3.0]
[1724425854158,6.7814,2658.0,2656.6,3.0]
[1724425854358,3.76245,2657.9,2657.2,3.76322]
[1724425854598,5.5453615,2658.3,2657.4,3.76299]
[1724425854599,10.54328,2658.3,2657.4,3.76299]
[1724425854797,10.54328,2658.3,2657.6,3.76271]
[1724425854957,10.54328,2658.3,2657.4,3.76295]
[1724425854958,3.76209,2658.1,2657.4,3.76295]
[1724425855157,1.054328,2658.2,2657.0,6.76354]
[1724425855158,4.816318,2658.2,2657.0,6.76354]
[1724425855417,6.7814,2658.3,2657.6,3.76276]
[1724425855561,3.76196,2658.2,2657.4,3.76295]
[1724425855757,3.76196,2658.2,2657.2,6.5082]
[1724425855758,3.76199,2658.2,2657.2,10.27147]
[1724425856020,7.52467,2658.0,2657.3,3.76311]
[1724425856188,12.3267615,2658.3,2657.0,6.76354]
[1724425856398,3.76245,2657.9,2657.0,6.76357]
[1724425856622,3.76224,2658.0,2657.3,3.76314]
[1724425856760,3.76224,2658.0,2657.2,3.76323]
[1724425856961,1.23267615,2658.2,2657.0,3.0]
[1724425857298,3.76297,2657.5,2656.8,10.56874]
[1724425857623,3.76297,2657.5,2656.8,10.56873]
[1724425857922,3.76322,2657.3,2656.6,7.52819]
[1724425858208,3.76321,2657.3,2656.6,3.76408]
[1724425858497,3.76321,2657.3,2656.7,3.76404]
[1724425858657,7.928263,2657.5,2656.8,3.76391]
[1724425858857,10.42019,2657.8,2657.0,3.76351]
[1724425859116,4.31265,2657.7,2657.0,3.76351]
[1724425859307,3.0,2658.0,2657.2,3.76325]
[1724425859471,3.76233,2658.0,2657.3,3.76313]
[1724425859799,3.76233,2658.0,2657.2,3.76325]
[1724425859800,4.31246,2657.9,2657.2,3.76325]
[1724425859971,0.431246,2657.8,2657.0,3.76356]
[1724425860297,0.55,2657.9,2657.2,3.76333]
[1724425860298,4.31243,2657.9,2657.2,3.76333]
[1724425860801,3.76215,2658.1,2657.2,10.27416]
[1724425861002,3.7625,2657.9,2657.2,3.76334]
[1724425861171,3.76248,2657.9,2657.3,3.76319]
[1724425861371,3.76255,2657.8,2657.0,3.76355]
[1724425861703,3.76216,2658.1,2657.4,3.76306]
[1724425862002,10.9257,2658.5,2657.6,3.76277]
[1724425862367,10.9257,2658.5,2657.6,3.7627]
[1724425862564,3.76188,2658.3,2657.4,10.27387]
[1724425862767,3.76216,2658.1,2657.4,10.27387]
[1724425862978,3.76227,2658.0,2657.2,3.76323]
[1724425863200,3.76227,2658.0,2657.3,3.0]
[1724425863397,3.76251,2657.8,2657.3,3.0]
[1724425863588,0.376188,2658.2,2657.1,7.207]
[1724425863589,0.376188,2658.2,2657.5,3.76292]
[1724425863775,0.376188,2658.2,2657.2,3.0]
[1724425863776,3.7621,2658.1,2657.4,3.76299]
[1724425863979,10.73259,2657.9,2657.2,3.0]
[1724425864176,10.73259,2657.9,2657.2,3.76334]
[1724425864523,3.76219,2658.1,2657.4,3.76299]
[1724425864721,6.8429,2658.4,2657.8,3.76248]
[1724425864868,11.720021,2658.4,2657.8,3.76248]
[1724425865198,11.720021,2658.4,2657.9,3.76236]
[1724425865199,1.115451,2658.4,2657.9,3.76236]
[1724425865400,3.76195,2658.2,2657.4,3.76294]
[1724425865565,3.76209,2658.1,2657.5,3.0]
[1724425865764,7.339017,2658.7,2657.6,0.07524731]
[1724425865975,10.70539,2659.1,2657.8,3.76249]
[1724425866160,3.76098,2658.9,2658.1,3.76202]
[1724425866391,3.76124,2658.7,2657.9,6.76227]
[1724425866581,4.831598,2658.9,2657.9,3.0]
[1724425866778,10.70542,2659.1,2657.8,3.0]
[1724425867074,7.46,2659.8,2657.4,3.76306]
[1724425867075,3.76204,2658.2,2657.4,3.76306]
[1724425867289,3.76259,2657.8,2657.1,3.76347]
[1724425867480,3.76288,2657.6,2656.9,6.7717]
[1724425867694,3.7632,2657.4,2656.6,3.76409]
[1724425867901,10.40273,2657.9,2656.6,3.76409]
[1724425867902,3.76288,2657.6,2656.8,3.76384]
[1724425868099,3.76336,2657.2,2656.5,6.9453]
[1724425868468,7.52627,2657.4,2656.6,3.76411]
[1724425868626,3.76308,2657.4,2656.6,3.76411]
[1724425868777,0.55,2657.8,2656.6,3.76413]
[1724425869112,3.76337,2657.2,2656.5,10.70957]
[1724425869323,3.76337,2657.2,2656.4,3.76437]
[1724425869324,6.7496,2657.6,2656.4,3.76437]
[1724425869630,3.76419,2656.7,2656.3,0.1289797]
[1724425869792,3.76412,2656.7,2656.3,0.1289797]
[1724425870116,10.51343,2656.9,2656.3,0.1289797]
[1724425870315,1.051343,2656.8,2656.3,0.1289797]
[1724425870787,1.051343,2656.8,2656.3,3.8935697]
[1724425871004,3.76355,2657.1,2656.3,0.1289797]
[1724425871795,6.4924,2657.3,2656.3,0.1289797]
[1724425871997,3.76436,2656.5,2656.3,0.1289797]
[1724425872420,3.76416,2656.7,2656.3,0.1289797]
[1724425873227,10.39846,2656.7,2656.3,0.1289797]
[1724425873450,1.039846,2656.6,2656.3,0.1289797]
[1724425874304,3.0,2657.2,2656.6,3.76409]
[1724425874534,3.0,2657.2,2656.3,0.1289797]
[1724425874535,3.76336,2657.2,2656.4,3.7644]
[1724425875040,3.76376,2657.0,2656.3,0.1289797]
[1724425875190,3.76341,2657.2,2656.3,0.1289797]
[1724425875390,3.76341,2657.2,2656.4,3.76435]
[1724425875621,0.926341,2657.1,2656.4,3.76435]
[1724425875967,3.76365,2657.0,2656.3,0.1289797]
[1724425876096,3.76381,2656.9,2656.3,0.1289797]
[1724425876449,10.75207,2657.4,2656.6,3.76411]
[1724425876737,3.76284,2657.6,2656.8,3.76382]
[1724425876908,0.448187,2657.5,2656.9,3.76373]
[1724425877246,0.448187,2657.5,2656.8,3.76382]
[1724425877625,0.71903,2657.7,2657.0,3.76354]
[1724425877934,3.76303,2657.5,2656.8,3.76382]
[1724425878140,0.71903,2657.7,2656.4,3.7644]
[1724425878312,3.76358,2657.1,2656.4,3.76436]
[1724425878501,3.76358,2657.1,2656.5,3.76434]
[1724425878708,3.76326,2657.3,2656.4,3.76442]
[1724425878900,3.76351,2657.1,2656.3,0.1289797]
[1724425879099,0.376326,2657.2,2656.3,0.1289797]
[1724425879100,3.76366,2657.0,2656.3,0.1289797]
[1724425879337,0.55,2657.1,2656.3,0.1289797]
[1724425879514,10.687556,2657.2,2656.4,3.7644]
[1724425879759,3.0,2657.5,2656.9,3.76375]
[1724425879943,3.76284,2657.6,2656.8,3.76382]
[1724425880155,0.71903,2657.7,2656.9,0.07527211]
[1724425880388,10.7577,2658.0,2657.3,3.7632]
[1724425880537,6.9629,2658.4,2657.1,6.7031]
[1724425880738,3.76139,2658.6,2657.8,3.76249]
[1724425880937,3.76152,2658.5,2657.8,3.76249]
[1724425881142,3.76139,2658.6,2657.8,3.7624]
[1724425881355,5.209932,2658.6,2657.8,3.7624]
[1724425881554,3.7616,2658.5,2657.8,3.7624]
[1724425881758,1.448542,2658.6,2657.5,3.7629]
[1724425881962,3.76205,2658.2,2657.4,3.763]
[1724425882304,3.76205,2658.2,2657.4,3.76293]
[1724425882445,0.55,2658.1,2657.4,3.76293]
[1724425882777,4.514326,2658.2,2657.2,14.25329]
[1724425882977,3.76223,2658.0,2657.2,6.76329]
[1724425883188,7.3416,2658.1,2656.8,3.7639]
[1724425883345,7.3416,2658.1,2656.6,6.4736]
[1724425883346,4.31228,2658.0,2656.6,6.4736]
[1724425883612,2.29848083,2658.2,2657.6,3.76267]
[1724425883613,0.752376,2658.2,2657.6,3.76267]
[1724425883809,4.514326,2658.2,2657.4,7.52596]
[1724425884041,0.752376,2658.2,2657.6,3.76268]
[1724425884358,9.78624683,2658.6,2657.9,3.76227]
[1724425884572,3.7613,2658.7,2657.8,3.7625]
[1724425884731,3.76161,2658.5,2657.8,3.7625]
[1724425885047,1.54610483,2658.8,2657.5,3.0]
[1724425885207,3.76204,2658.2,2657.5,3.0]
[1724425885408,3.76175,2658.4,2657.6,3.76277]
[1724425885610,1.9222499,2658.7,2657.5,3.0]